{"text_format":"1","workbook":"xlsx","n_sheets":1,"sheets":["Лист1"],"not_rendered":{"charts":0,"images":0,"macros":1,"external_links":0,"defined_names":0,"comments":0,"pivot_tables":0},"unopened":[],"bounds":{"document_bytes":16777216,"sheet_cells":100000,"rows_first":2000,"rows_last":500,"rows_between":2000,"halvings":0,"cell_chars":16384,"cell_head_chars":4096},"cells_cut":0,"cells_raw":0,"read":"whole","date_system":"1900"}

{"sheet":"Лист1","index":0,"n_rows":19,"n_cols":40,"rows_kept":19,"cut":false,"hidden":false,"merged":[]}
[]
[]
[1,0,0,0,1,1,0,1,0,1,10,18,14,0,2,88,94,115,32,177,25,94,32,8,9,15,44,132,55,20,{"$f":"IF(A3=1,K3,U3)","v":10},{"$f":"IF(B3=1,L3,V3)","v":94},32,8,2,88,44,115,55,177]
[0,1,1,1,0,0,1,0,1,0,55,44,4,28,65,1,33,94,122,0,66,95,3,5,8,66,72,155,235,88,{"$f":"IF(A4=1,K4,U4)","v":66},{"$f":"IF(B4=1,L4,V4)","v":44},{"$f":"IF(C4=1,M4,W4)","v":4},{"$f":"IF(D4=1,N4,X4)","v":28},{"$f":"IF(E4=1,O4,Y4)","v":8},{"$f":"IF(F4=1,P4,Z4)","v":66},{"$f":"IF(G4=1,Q4,AA4)","v":33},{"$f":"IF(H4=1,R4,AB4)","v":155},{"$f":"IF(I4=1,S4,AC4)","v":122},{"$f":"IF(J4=1,T4,AD4)","v":88}]
[]
[]
[]
[]
[]
[]
[]
[]
[]
[]
[null,null,null,null,null,null,null,null,null,null,null,"Как во всех формулах синего столбца прописать перед ссылками на ячейки из красного столбца знак $ (доллара), т.е сделать эти ссылки абсолютными? "]
[null,null,null,null,null,null,null,null,null,null,null,"Например: вместо =ЕСЛИ(A3=1;K3;U3) получить =ЕСЛИ($A3=1;K3;U3)"]
[null,null,null,null,null,null,null,null,null,null,null,"Как сделать это для всех формул из синего столбца, не переправляя каждую ячейку вручную?"]
[null,null,null,null,null,null,null,null,null,null,null,"Если делать это с помощью записи макроса, то при протягивании формулы вправо прописывается ссылка только на ту ячейку, "]
[null,null,null,null,null,null,null,null,null,null,null,"для которой записывался макрос. :("]